[Event "Titled Tuesday Blitz June 21 Late 2022"]
[White "Livaic, Leon"]
[Black "Mickiewicz, Piotr"]
[WhiteFideId "14531534"]
[BlackFideId "1114891"]
[WhiteElo "2540"]
[BlackElo "2209"]
[Result "1-0"]
[Round "05"]
[TimeControl "180+1"]
[Date "2022.06.21"]
[WhiteClock "0:00:37"]
[BlackClock "0:00:07"]

1. e4 {[%clk 0:03:00]}  c5 {[%clk 0:02:58]} 2. Nf3 {[%clk 0:02:59]}  e6 {[%clk 0:02:59]} 3. d3 {[%clk 0:02:58]}  Nc6 {[%clk 0:02:57]} 4. g3 {[%clk 0:02:57]}  d6 {[%clk 0:02:57]} 5. Bg2 {[%clk 0:02:58]}  Nf6 {[%clk 0:02:57]} 6. O-O {[%clk 0:02:58]}  Be7 {[%clk 0:02:57]} 7. b3 {[%clk 0:02:58]}  O-O {[%clk 0:02:56]} 8. Bb2 {[%clk 0:02:59]}  e5 {[%clk 0:02:56]} 9. Nc3 {[%clk 0:02:57]}  a6 {[%clk 0:02:54]} 10. a4 {[%clk 0:02:55]}  Bg4 {[%clk 0:02:50]} 11. h3 {[%clk 0:02:55]}  Bxf3 {[%clk 0:02:43]} 12. Bxf3 {[%clk 0:02:56]}  Nd4 {[%clk 0:02:43]} 13. Bg2 {[%clk 0:02:56]}  b5 {[%clk 0:02:42]} 14. f4 {[%clk 0:02:53]}  b4 {[%clk 0:02:40]} 15. Ne2 {[%clk 0:02:52]}  Nd7 {[%clk 0:02:36]} 16. h4 {[%clk 0:02:36]}  Bf6 {[%clk 0:02:25]} 17. Bh3 {[%clk 0:02:26]}  Nxe2+ {[%clk 0:01:55]} 18. Qxe2 {[%clk 0:02:26]}  exf4 {[%clk 0:01:54]} 19. Bxf6 {[%clk 0:02:25]}  Nxf6 {[%clk 0:01:51]} 20. gxf4 {[%clk 0:02:19]}  Re8 {[%clk 0:01:48]} 21. Qf2 {[%clk 0:02:07]}  Ra7 {[%clk 0:01:35]} 22. Kh2 {[%clk 0:02:07]}  Rae7 {[%clk 0:01:34]} 23. Rg1 {[%clk 0:02:07]}  g6 {[%clk 0:01:08]} 24. Rg5 {[%clk 0:02:00]}  h6 {[%clk 0:00:51]} 25. Rg2 {[%clk 0:01:57]}  Kh8 {[%clk 0:00:20]} 26. f5 {[%clk 0:01:46]}  g5 {[%clk 0:00:19]} 27. hxg5 {[%clk 0:01:46]}  hxg5 {[%clk 0:00:20]} 28. Rxg5 {[%clk 0:01:47]}  Nh7 {[%clk 0:00:20]} 29. Rh5 {[%clk 0:01:19]}  f6 {[%clk 0:00:20]} 30. Rg1 {[%clk 0:01:18]}  d5 {[%clk 0:00:19]} 31. Bg2 {[%clk 0:01:00]}  Qd6+ {[%clk 0:00:19]} 32. Kh1 {[%clk 0:00:59]}  Rg8 {[%clk 0:00:19]} 33. Bf3 {[%clk 0:00:54]}  Rxg1+ {[%clk 0:00:15]} 34. Qxg1 {[%clk 0:00:54]}  Rg7 {[%clk 0:00:15]} 35. Qh2 {[%clk 0:00:52]}  Qxh2+ {[%clk 0:00:13]} 36. Kxh2 {[%clk 0:00:53]}  d4 {[%clk 0:00:13]} 37. e5 {[%clk 0:00:52]}  fxe5 {[%clk 0:00:13]} 38. f6 {[%clk 0:00:38]}  Rg5 {[%clk 0:00:11]} 39. Rh6 {[%clk 0:00:38]}  Rf5 {[%clk 0:00:10]} 40. Be4 {[%clk 0:00:36]}  Rf2+ {[%clk 0:00:08]} 41. Kg3 {[%clk 0:00:36]}  Rxf6 {[%clk 0:00:08]} 42. Rxh7+ {[%clk 0:00:37]}  Kg8 {[%clk 0:00:08]} 43. Rc7 {[%clk 0:00:36]}  Kf8 {[%clk 0:00:08]} 44. Rxc5 {[%clk 0:00:36]}  Rf1 {[%clk 0:00:07]} 45. Rxe5 {[%clk 0:00:36]}  Rc1 {[%clk 0:00:06]} 46. Rc5 {[%clk 0:00:36]}  a5 {[%clk 0:00:07]} 47. Kf4 {[%clk 0:00:36]}  Ke7 {[%clk 0:00:07]} 48. Ke5 {[%clk 0:00:37]}  Rg1 {[%clk 0:00:07]} 49. Kxd4 {[%clk 0:00:37]}  Kd6 {[%clk 0:00:07]} 50. Rxa5 {[%clk 0:00:37]} 1-0


[Site "https://www.chess.com"]

[Event "Titled Tuesday Blitz June 21 Late 2022"]
[White "Lobanov, Sergei"]
[Black "Papp, Levente"]
[WhiteFideId "24183750"]
[BlackFideId "751243"]
[WhiteElo "2524"]
[BlackElo "2308"]
[Result "1/2-1/2"]
[Round "05"]
[TimeControl "180+1"]
[Date "2022.06.21"]
[WhiteClock "0:00:13"]
[BlackClock "0:00:05"]

1. Nf3 {[%clk 0:03:00]}  Nf6 {[%clk 0:02:57]} 2. b3 {[%clk 0:03:00]}  c5 {[%clk 0:02:51]} 3. Bb2 {[%clk 0:03:01]}  d5 {[%clk 0:02:50]} 4. e3 {[%clk 0:03:01]}  e6 {[%clk 0:02:47]} 5. c4 {[%clk 0:03:00]}  Be7 {[%clk 0:02:38]} 6. Be2 {[%clk 0:02:58]}  O-O {[%clk 0:02:38]} 7. O-O {[%clk 0:02:58]}  Nc6 {[%clk 0:02:38]} 8. cxd5 {[%clk 0:02:59]}  exd5 {[%clk 0:02:38]} 9. d4 {[%clk 0:02:59]}  Be6 {[%clk 0:02:19]} 10. Nc3 {[%clk 0:02:57]}  cxd4 {[%clk 0:01:45]} 11. Nxd4 {[%clk 0:02:57]}  Nxd4 {[%clk 0:01:39]} 12. Qxd4 {[%clk 0:02:57]}  Qa5 {[%clk 0:01:35]} 13. Rfd1 {[%clk 0:02:53]}  Rfd8 {[%clk 0:01:34]} 14. Bf3 {[%clk 0:02:26]}  Rac8 {[%clk 0:01:29]} 15. Rd3 {[%clk 0:02:26]}  b5 {[%clk 0:01:22]} 16. Rad1 {[%clk 0:02:23]}  b4 {[%clk 0:01:08]} 17. Na4 {[%clk 0:02:07]}  h6 {[%clk 0:01:00]} 18. R3d2 {[%clk 0:01:56]}  Rd7 {[%clk 0:00:43]} 19. h3 {[%clk 0:01:40]}  Rdc7 {[%clk 0:00:37]} 20. Qf4 {[%clk 0:01:40]}  Rc2 {[%clk 0:00:27]} 21. Be5 {[%clk 0:01:18]}  Nd7 {[%clk 0:00:22]} 22. Bd6 {[%clk 0:01:14]}  Bg5 {[%clk 0:00:19]} 23. Qg3 {[%clk 0:01:11]}  Rxd2 {[%clk 0:00:18]} 24. Rxd2 {[%clk 0:01:12]}  Bf6 {[%clk 0:00:13]} 25. Qf4 {[%clk 0:01:05]}  Rc1+ {[%clk 0:00:12]} 26. Kh2 {[%clk 0:01:05]}  Qa6 {[%clk 0:00:12]} 27. Be2 {[%clk 0:01:02]}  Qc6 {[%clk 0:00:12]} 28. Qxb4 {[%clk 0:01:01]}  Qxd6+ {[%clk 0:00:09]} 29. Qxd6 {[%clk 0:01:00]}  Be5+ {[%clk 0:00:10]} 30. Qxe5 {[%clk 0:01:01]}  Nxe5 {[%clk 0:00:11]} 31. f4 {[%clk 0:00:53]}  Nc6 {[%clk 0:00:11]} 32. Bf3 {[%clk 0:00:53]}  Nb4 {[%clk 0:00:10]} 33. a3 {[%clk 0:00:53]}  Nc2 {[%clk 0:00:11]} 34. Bxd5 {[%clk 0:00:35]}  Nxe3 {[%clk 0:00:11]} 35. Bc4 {[%clk 0:00:25]}  Bxc4 {[%clk 0:00:08]} 36. Rd8+ {[%clk 0:00:25]}  Kh7 {[%clk 0:00:09]} 37. bxc4 {[%clk 0:00:25]}  Rxc4 {[%clk 0:00:10]} 38. Nb2 {[%clk 0:00:23]}  Rxf4 {[%clk 0:00:10]} 39. Rd3 {[%clk 0:00:19]}  Nf5 {[%clk 0:00:09]} 40. Rd7 {[%clk 0:00:17]}  Rf2 {[%clk 0:00:08]} 41. Nd3 {[%clk 0:00:17]}  Rd2 {[%clk 0:00:06]} 42. Rxf7 {[%clk 0:00:17]}  Rxd3 {[%clk 0:00:07]} 43. Rxf5 {[%clk 0:00:17]}  Rxa3 {[%clk 0:00:07]} 44. h4 {[%clk 0:00:17]}  Kg6 {[%clk 0:00:08]} 45. g4 {[%clk 0:00:15]}  Ra2+ {[%clk 0:00:06]} 46. Kg3 {[%clk 0:00:15]}  Ra3+ {[%clk 0:00:07]} 47. Kf4 {[%clk 0:00:14]}  Ra4+ {[%clk 0:00:07]} 48. Kg3 {[%clk 0:00:14]}  Kh7 {[%clk 0:00:06]} 49. Rf7 {[%clk 0:00:13]}  Kg8 {[%clk 0:00:05]} 50. Rb7 {[%clk 0:00:13]}  Kh7 {[%clk 0:00:05]} 51. h5 {[%clk 0:00:13]}  a5 {[%clk 0:00:05]} 52. Ra7 {[%clk 0:00:13]}  Ra3+ {[%clk 0:00:06]} 53. Kf4 {[%clk 0:00:10]}  a4 {[%clk 0:00:07]} 54. Ra8 {[%clk 0:00:11]}  Ra1 {[%clk 0:00:06]} 55. Kg3 {[%clk 0:00:11]}  a3 {[%clk 0:00:06]} 56. Kg2 {[%clk 0:00:12]}  Ra2+ {[%clk 0:00:06]} 57. Kg3 {[%clk 0:00:12]}  Ra1 {[%clk 0:00:07]} 58. Kg2 {[%clk 0:00:12]}  Ra2+ {[%clk 0:00:07]} 59. Kg3 {[%clk 0:00:13]}  Ra1 {[%clk 0:00:05]} 1/2-1/2


[Site "https://www.chess.com"]

[Event "Titled Tuesday Blitz June 21 Late 2022"]
[White "Lopez Perdomo, Juan David"]
[Black "Mangialardo, Tiago Carvalho"]
[WhiteFideId "4405137"]
[BlackFideId "2130718"]
[WhiteElo "1997"]
[BlackElo "2087"]
[Result "1-0"]
[Round "05"]
[TimeControl "180+1"]
[Date "2022.06.22"]
[WhiteClock "0:00:55"]
[BlackClock "0:00:02"]

1. e4 {[%clk 0:02:57]}  e5 {[%clk 0:02:57]} 2. Nf3 {[%clk 0:02:57]}  Nc6 {[%clk 0:02:57]} 3. Bb5 {[%clk 0:02:57]}  a6 {[%clk 0:02:56]} 4. Ba4 {[%clk 0:02:57]}  Nf6 {[%clk 0:02:57]} 5. d3 {[%clk 0:02:57]}  d6 {[%clk 0:02:57]} 6. h3 {[%clk 0:02:57]}  Be7 {[%clk 0:02:57]} 7. c3 {[%clk 0:02:57]}  O-O {[%clk 0:02:58]} 8. O-O {[%clk 0:02:55]}  b5 {[%clk 0:02:58]} 9. Bc2 {[%clk 0:02:55]}  Na5 {[%clk 0:02:58]} 10. Re1 {[%clk 0:02:55]}  c5 {[%clk 0:02:59]} 11. Nbd2 {[%clk 0:02:54]}  Nc6 {[%clk 0:02:59]} 12. Nf1 {[%clk 0:02:54]}  Re8 {[%clk 0:02:59]} 13. Ne3 {[%clk 0:02:54]}  Bb7 {[%clk 0:02:54]} 14. Nd5 {[%clk 0:02:52]}  Nxd5 {[%clk 0:02:32]} 15. exd5 {[%clk 0:02:53]}  Nb8 {[%clk 0:02:33]} 16. d4 {[%clk 0:02:46]}  Bf6 {[%clk 0:02:21]} 17. dxc5 {[%clk 0:02:42]}  dxc5 {[%clk 0:02:22]} 18. d6 {[%clk 0:02:43]}  Re6 {[%clk 0:02:09]} 19. Qd3 {[%clk 0:02:24]}  e4 {[%clk 0:01:35]} 20. Qd1 {[%clk 0:01:58]}  exf3 {[%clk 0:01:16]} 21. Rxe6 {[%clk 0:01:59]}  fxe6 {[%clk 0:01:14]} 22. Qd3 {[%clk 0:01:55]}  g6 {[%clk 0:01:07]} 23. Bf4 {[%clk 0:01:56]}  e5 {[%clk 0:01:06]} 24. Bh6 {[%clk 0:01:40]}  c4 {[%clk 0:01:04]} 25. Qe3 {[%clk 0:01:34]}  Qxd6 {[%clk 0:01:01]} 26. Rd1 {[%clk 0:01:34]}  Qe7 {[%clk 0:00:59]} 27. g4 {[%clk 0:01:29]}  Nd7 {[%clk 0:00:55]} 28. Be4 {[%clk 0:01:20]}  Bxe4 {[%clk 0:00:44]} 29. Qxe4 {[%clk 0:01:21]}  Re8 {[%clk 0:00:40]} 30. Qb7 {[%clk 0:01:20]}  Nc5 {[%clk 0:00:38]} 31. Qd5+ {[%clk 0:01:15]}  Kh8 {[%clk 0:00:27]} 32. Be3 {[%clk 0:01:12]}  Nd3 {[%clk 0:00:25]} 33. b3 {[%clk 0:01:12]}  e4 {[%clk 0:00:24]} 34. bxc4 {[%clk 0:01:12]}  Qe5 {[%clk 0:00:14]} 35. Qc6 {[%clk 0:01:11]}  bxc4 {[%clk 0:00:10]} 36. Bd4 {[%clk 0:01:10]}  Qe6 {[%clk 0:00:09]} 37. Bxf6+ {[%clk 0:01:10]}  Kg8 {[%clk 0:00:07]} 38. Qa4 {[%clk 0:01:07]}  Qxf6 {[%clk 0:00:06]} 39. Qxe8+ {[%clk 0:01:06]}  Kg7 {[%clk 0:00:07]} 40. Qxe4 {[%clk 0:01:06]}  Ne5 {[%clk 0:00:04]} 41. Rd5 {[%clk 0:01:03]}  Nd3 {[%clk 0:00:03]} 42. Rd7+ {[%clk 0:01:03]}  Kh6 {[%clk 0:00:03]} 43. Qe3+ {[%clk 0:01:00]}  g5 {[%clk 0:00:03]} 44. Re7 {[%clk 0:00:59]}  Nf4 {[%clk 0:00:02]} 45. Qe4 {[%clk 0:00:56]}  Nxh3+ {[%clk 0:00:01]} 46. Kh2 {[%clk 0:00:57]}  Nf4 {[%clk 0:00:02]} 47. Rxh7# {[%clk 0:00:55]} 1-0


[Site "https://www.chess.com"]

[Event "Titled Tuesday Blitz June 21 Late 2022"]
[White "Maltsevskaya, Aleksandra"]
[Black "Konaplev, Anton"]
[WhiteFideId "24174041"]
[BlackFideId "24165646"]
[WhiteElo "2243"]
[BlackElo "2208"]
[Result "1-0"]
[Round "05"]
[TimeControl "180+1"]
[Date "2022.06.22"]
[WhiteClock "0:00:04"]
[BlackClock "0:00:01"]

1. Nf3 {[%clk 0:02:47]}  Nf6 {[%clk 0:02:58]} 2. g3 {[%clk 0:02:47]}  d5 {[%clk 0:02:58]} 3. d3 {[%clk 0:02:48]}  c6 {[%clk 0:02:58]} 4. Nbd2 {[%clk 0:02:49]}  Bg4 {[%clk 0:02:56]} 5. Bg2 {[%clk 0:02:49]}  Nbd7 {[%clk 0:02:56]} 6. O-O {[%clk 0:02:49]}  e5 {[%clk 0:02:56]} 7. e4 {[%clk 0:02:50]}  Bd6 {[%clk 0:02:57]} 8. h3 {[%clk 0:02:49]}  Bh5 {[%clk 0:02:57]} 9. Qe2 {[%clk 0:02:49]}  O-O {[%clk 0:02:56]} 10. c3 {[%clk 0:02:48]}  dxe4 {[%clk 0:02:55]} 11. Nxe4 {[%clk 0:02:47]}  Nxe4 {[%clk 0:02:54]} 12. dxe4 {[%clk 0:02:48]}  Bc5 {[%clk 0:02:52]} 13. Rd1 {[%clk 0:02:48]}  Qc7 {[%clk 0:02:52]} 14. Be3 {[%clk 0:02:47]}  Bxe3 {[%clk 0:02:50]} 15. Qxe3 {[%clk 0:02:48]}  Rfd8 {[%clk 0:02:41]} 16. Rd3 {[%clk 0:02:43]}  Bxf3 {[%clk 0:02:40]} 17. Bxf3 {[%clk 0:02:42]}  Nf8 {[%clk 0:02:39]} 18. Rad1 {[%clk 0:02:42]}  b6 {[%clk 0:02:22]} 19. Bg4 {[%clk 0:02:37]}  g6 {[%clk 0:01:59]} 20. h4 {[%clk 0:02:37]}  Qe7 {[%clk 0:01:50]} 21. h5 {[%clk 0:02:32]}  c5 {[%clk 0:01:34]} 22. h6 {[%clk 0:02:28]}  Rxd3 {[%clk 0:01:17]} 23. Rxd3 {[%clk 0:02:26]}  Rd8 {[%clk 0:01:14]} 24. Rd5 {[%clk 0:02:25]}  Rxd5 {[%clk 0:01:13]} 25. exd5 {[%clk 0:02:25]}  f5 {[%clk 0:01:10]} 26. Be2 {[%clk 0:02:22]}  Qd6 {[%clk 0:01:08]} 27. Qg5 {[%clk 0:02:17]}  Kf7 {[%clk 0:00:59]} 28. Qh4 {[%clk 0:02:04]}  Qe7 {[%clk 0:00:33]} 29. Qa4 {[%clk 0:01:59]}  Qc7 {[%clk 0:00:20]} 30. Bc4 {[%clk 0:01:56]}  Ke7 {[%clk 0:00:17]} 31. d6+ {[%clk 0:01:10]}  Kxd6 {[%clk 0:00:16]} 32. Qe8 {[%clk 0:01:10]}  Qe7 {[%clk 0:00:10]} 33. Qb8+ {[%clk 0:01:10]}  Kc6 {[%clk 0:00:09]} 34. b4 {[%clk 0:00:50]}  cxb4 {[%clk 0:00:08]} 35. cxb4 {[%clk 0:00:50]}  Nd7 {[%clk 0:00:04]} 36. Qc8+ {[%clk 0:00:17]}  Kd6 {[%clk 0:00:04]} 37. a3 {[%clk 0:00:16]}  e4 {[%clk 0:00:04]} 38. Qb7 {[%clk 0:00:13]}  Ne5 {[%clk 0:00:04]} 39. Qb8+ {[%clk 0:00:14]}  Kc6 {[%clk 0:00:04]} 40. Be2 {[%clk 0:00:11]}  Nf3+ {[%clk 0:00:01]} 41. Bxf3 {[%clk 0:00:12]}  exf3 {[%clk 0:00:02]} 42. Qa8+ {[%clk 0:00:12]}  Kb5 {[%clk 0:00:02]} 43. Qxf3 {[%clk 0:00:12]}  Ka4 {[%clk 0:00:03]} 44. Qc3 {[%clk 0:00:09]}  Qe4 {[%clk 0:00:02]} 45. Qg7 {[%clk 0:00:07]}  f4 {[%clk 0:00:01]} 46. Qxh7 {[%clk 0:00:03]}  fxg3 {[%clk 0:00:01]} 47. Qd7+ {[%clk 0:00:04]} 1-0


[Site "https://www.chess.com"]

[Event "Titled Tuesday Blitz June 21 Late 2022"]
[White "Martinez Alcantara, Jose Eduardo"]
[Black "Roman, Rodrigo"]
[WhiteFideId "3805662"]
[BlackFideId "3701220"]
[WhiteElo "2914"]
[BlackElo "2452"]
[Result "1-0"]
[Round "05"]
[TimeControl "180+1"]
[Date "2022.06.22"]
[WhiteClock "0:01:36"]
[BlackClock "0:00:07"]

1. e4 {[%clk 0:03:00]}  c5 {[%clk 0:02:58]} 2. Nf3 {[%clk 0:02:59]}  d6 {[%clk 0:02:58]} 3. Bb5+ {[%clk 0:02:59]}  Nd7 {[%clk 0:02:58]} 4. O-O {[%clk 0:02:58]}  a6 {[%clk 0:02:57]} 5. Bxd7+ {[%clk 0:02:58]}  Bxd7 {[%clk 0:02:57]} 6. c3 {[%clk 0:02:59]}  Nf6 {[%clk 0:02:57]} 7. Re1 {[%clk 0:03:00]}  g6 {[%clk 0:02:56]} 8. d4 {[%clk 0:03:00]}  cxd4 {[%clk 0:02:56]} 9. cxd4 {[%clk 0:03:01]}  Bg7 {[%clk 0:02:56]} 10. e5 {[%clk 0:03:02]}  dxe5 {[%clk 0:02:56]} 11. dxe5 {[%clk 0:03:03]}  Ng8 {[%clk 0:02:43]} 12. Nc3 {[%clk 0:03:00]}  Nh6 {[%clk 0:02:32]} 13. h3 {[%clk 0:02:46]}  O-O {[%clk 0:02:29]} 14. Bg5 {[%clk 0:02:44]}  f6 {[%clk 0:02:21]} 15. exf6 {[%clk 0:02:43]}  exf6 {[%clk 0:02:22]} 16. Qb3+ {[%clk 0:02:38]}  Nf7 {[%clk 0:02:16]} 17. Bf4 {[%clk 0:02:36]}  Bc6 {[%clk 0:01:28]} 18. Rad1 {[%clk 0:02:33]}  Qa5 {[%clk 0:01:28]} 19. Nd4 {[%clk 0:02:31]}  g5 {[%clk 0:01:08]} 20. Bg3 {[%clk 0:02:27]}  f5 {[%clk 0:01:04]} 21. Bd6 {[%clk 0:02:08]}  Rfe8 {[%clk 0:00:53]} 22. Bb4 {[%clk 0:02:00]}  Qb6 {[%clk 0:00:23]} 23. Nxf5 {[%clk 0:01:47]}  Bf8 {[%clk 0:00:10]} 24. Bxf8 {[%clk 0:01:38]}  Qxb3 {[%clk 0:00:11]} 25. axb3 {[%clk 0:01:38]}  Kxf8 {[%clk 0:00:11]} 26. Nd4 {[%clk 0:01:36]}  Bd7 {[%clk 0:00:10]} 27. Nd5 {[%clk 0:01:32]}  Rxe1+ {[%clk 0:00:09]} 28. Rxe1 {[%clk 0:01:33]}  Nd6 {[%clk 0:00:04]} 29. Nf6 {[%clk 0:01:33]}  Bb5 {[%clk 0:00:01]} 30. Nxh7+ {[%clk 0:01:31]}  Kg7 {[%clk 0:00:02]} 31. Nxg5 {[%clk 0:01:32]}  Nf7 {[%clk 0:00:02]} 32. Nxf7 {[%clk 0:01:32]}  Kxf7 {[%clk 0:00:02]} 33. Nxb5 {[%clk 0:01:33]}  axb5 {[%clk 0:00:03]} 34. Re5 {[%clk 0:01:33]}  Ra2 {[%clk 0:00:03]} 35. Rxb5 {[%clk 0:01:33]}  Rxb2 {[%clk 0:00:04]} 36. Rxb7+ {[%clk 0:01:33]}  Kf6 {[%clk 0:00:05]} 37. g3 {[%clk 0:01:33]}  Rc2 {[%clk 0:00:04]} 38. Kg2 {[%clk 0:01:34]}  Kf5 {[%clk 0:00:05]} 39. Rb4 {[%clk 0:01:33]}  Rb2 {[%clk 0:00:06]} 40. h4 {[%clk 0:01:34]}  Kf6 {[%clk 0:00:06]} 41. Rb5 {[%clk 0:01:35]}  Ke6 {[%clk 0:00:06]} 42. h5 {[%clk 0:01:35]}  Kf6 {[%clk 0:00:06]} 43. g4 {[%clk 0:01:35]}  Rc2 {[%clk 0:00:06]} 44. Kg3 {[%clk 0:01:35]}  Rc3+ {[%clk 0:00:07]} 45. f3 {[%clk 0:01:35]}  Rc1 {[%clk 0:00:08]} 46. g5+ {[%clk 0:01:36]}  Kg7 {[%clk 0:00:07]} 47. Rb7+ {[%clk 0:01:35]}  Kg8 {[%clk 0:00:07]} 48. h6 {[%clk 0:01:36]}  Rg1+ {[%clk 0:00:07]} 49. Kf4 {[%clk 0:01:36]}  Rh1 {[%clk 0:00:08]} 50. Kf5 {[%clk 0:01:36]}  Rh3 {[%clk 0:00:08]} 51. Kg6 {[%clk 0:01:37]}  Kf8 {[%clk 0:00:07]} 52. h7 {[%clk 0:01:36]} 1-0


[Site "https://www.chess.com"]

[Event "Titled Tuesday Blitz June 21 Late 2022"]
[White "Martinez Reyes, Pedro Ramon"]
[Black "Sturt, Raven"]
[WhiteFideId "3901807"]
[BlackFideId "2007304"]
[WhiteElo "2410"]
[BlackElo "2398"]
[Result "1-0"]
[Round "05"]
[TimeControl "180+1"]
[Date "2022.06.22"]
[WhiteClock "0:00:46"]
[BlackClock "0:00:08"]

1. b3 {[%clk 0:03:00]}  d5 {[%clk 0:02:59]} 2. Bb2 {[%clk 0:03:01]}  Bf5 {[%clk 0:02:58]} 3. Nf3 {[%clk 0:03:00]}  e6 {[%clk 0:02:51]} 4. e3 {[%clk 0:02:54]}  Nf6 {[%clk 0:02:49]} 5. Be2 {[%clk 0:02:52]}  h6 {[%clk 0:02:48]} 6. O-O {[%clk 0:02:51]}  Nbd7 {[%clk 0:02:48]} 7. d3 {[%clk 0:02:41]}  Bd6 {[%clk 0:02:42]} 8. Nbd2 {[%clk 0:02:40]}  Bh7 {[%clk 0:02:40]} 9. Re1 {[%clk 0:02:31]}  O-O {[%clk 0:02:37]} 10. Bf1 {[%clk 0:02:30]}  Qe7 {[%clk 0:02:00]} 11. a3 {[%clk 0:02:27]}  Rfd8 {[%clk 0:01:57]} 12. e4 {[%clk 0:02:26]}  dxe4 {[%clk 0:01:56]} 13. dxe4 {[%clk 0:02:27]}  Bf4 {[%clk 0:01:45]} 14. Qe2 {[%clk 0:02:22]}  Nc5 {[%clk 0:01:11]} 15. e5 {[%clk 0:02:21]}  Nd5 {[%clk 0:01:05]} 16. Nc4 {[%clk 0:02:13]}  h5 {[%clk 0:00:56]} 17. Nd4 {[%clk 0:02:06]}  h4 {[%clk 0:00:52]} 18. Qg4 {[%clk 0:02:00]}  Qg5 {[%clk 0:00:47]} 19. Qf3 {[%clk 0:01:53]}  Qh6 {[%clk 0:00:38]} 20. g3 {[%clk 0:01:41]}  Bg5 {[%clk 0:00:37]} 21. Rad1 {[%clk 0:01:29]}  a6 {[%clk 0:00:30]} 22. b4 {[%clk 0:01:08]}  Na4 {[%clk 0:00:30]} 23. Ba1 {[%clk 0:01:09]}  c5 {[%clk 0:00:29]} 24. bxc5 {[%clk 0:01:04]}  Nxc5 {[%clk 0:00:29]} 25. Nd6 {[%clk 0:01:04]}  Rd7 {[%clk 0:00:26]} 26. c4 {[%clk 0:01:00]}  Nb6 {[%clk 0:00:20]} 27. Nb3 {[%clk 0:01:00]}  Nba4 {[%clk 0:00:19]} 28. Nxc5 {[%clk 0:00:59]}  Nxc5 {[%clk 0:00:20]} 29. Bd4 {[%clk 0:00:59]}  Rc8 {[%clk 0:00:20]} 30. Be3 {[%clk 0:00:51]}  Rcc7 {[%clk 0:00:19]} 31. Qg4 {[%clk 0:00:50]}  Bxe3 {[%clk 0:00:18]} 32. Rxe3 {[%clk 0:00:50]}  hxg3 {[%clk 0:00:16]} 33. Rxg3 {[%clk 0:00:49]}  Kf8 {[%clk 0:00:15]} 34. Rh3 {[%clk 0:00:45]}  Qg6 {[%clk 0:00:06]} 35. Qxg6 {[%clk 0:00:45]}  Bxg6 {[%clk 0:00:07]} 36. Rh8+ {[%clk 0:00:46]}  Ke7 {[%clk 0:00:08]} 37. Re8# {[%clk 0:00:46]} 1-0


[Site "https://www.chess.com"]

[Event "Titled Tuesday Blitz June 21 Late 2022"]
[White "Melaugh, Shane"]
[Black "Luo, Terry"]
[WhiteFideId "2509580"]
[BlackFideId "30931045"]
[WhiteElo "1972"]
[BlackElo "2024"]
[Result "1-0"]
[Round "05"]
[TimeControl "180+1"]
[Date "2022.06.22"]
[WhiteClock "0:02:00"]
[BlackClock "0:01:56"]

1. c4 {[%clk 0:02:45]}  Nf6 {[%clk 0:02:59]} 2. Nc3 {[%clk 0:02:44]}  e6 {[%clk 0:02:59]} 3. e4 {[%clk 0:02:44]}  d5 {[%clk 0:02:51]} 4. cxd5 {[%clk 0:02:45]}  exd5 {[%clk 0:02:50]} 5. e5 {[%clk 0:02:46]}  Nfd7 {[%clk 0:02:50]} 6. d4 {[%clk 0:02:45]}  c5 {[%clk 0:02:47]} 7. dxc5 {[%clk 0:02:21]}  Nxe5 {[%clk 0:02:45]} 8. Qxd5 {[%clk 0:02:20]}  Qxd5 {[%clk 0:02:32]} 9. Nxd5 {[%clk 0:02:20]}  Kd8 {[%clk 0:02:22]} 10. Bf4 {[%clk 0:02:05]}  Be6 {[%clk 0:02:18]} 11. O-O-O {[%clk 0:02:02]}  Nbd7 {[%clk 0:01:56]} 12. Bxe5 {[%clk 0:02:00]}  Nxe5 {[%clk 0:01:56]} 13. Nb6+ {[%clk 0:02:00]} 1-0


[Site "https://www.chess.com"]

[Event "Titled Tuesday Blitz June 21 Late 2022"]
[White "Melikyan, Gnel"]
[Black "Richter, Nils"]
[WhiteFideId "54109990"]
[BlackFideId "12990809"]
[WhiteElo "2645"]
[BlackElo "2522"]
[Result "0-1"]
[Round "05"]
[TimeControl "180+1"]
[Date "2022.06.22"]
[WhiteClock "0:00:04"]
[BlackClock "0:00:54"]

1. e4 {[%clk 0:03:00]}  e5 {[%clk 0:02:59]} 2. Nc3 {[%clk 0:02:58]}  Nf6 {[%clk 0:02:58]} 3. Nf3 {[%clk 0:02:58]}  Nc6 {[%clk 0:02:54]} 4. Bc4 {[%clk 0:02:50]}  Nxe4 {[%clk 0:02:51]} 5. Nxe4 {[%clk 0:02:48]}  d5 {[%clk 0:02:50]} 6. Bxd5 {[%clk 0:02:46]}  Qxd5 {[%clk 0:02:50]} 7. Nc3 {[%clk 0:02:45]}  Qd8 {[%clk 0:02:48]} 8. O-O {[%clk 0:02:42]}  Bd6 {[%clk 0:02:48]} 9. Re1 {[%clk 0:02:41]}  O-O {[%clk 0:02:48]} 10. h3 {[%clk 0:02:40]}  Re8 {[%clk 0:02:46]} 11. d3 {[%clk 0:02:37]}  Bd7 {[%clk 0:02:44]} 12. Bg5 {[%clk 0:02:34]}  Be7 {[%clk 0:02:40]} 13. Bxe7 {[%clk 0:02:28]}  Qxe7 {[%clk 0:02:38]} 14. d4 {[%clk 0:02:27]}  Qb4 {[%clk 0:02:27]} 15. Nd5 {[%clk 0:01:59]}  Qd6 {[%clk 0:02:26]} 16. dxe5 {[%clk 0:01:53]}  Nxe5 {[%clk 0:02:26]} 17. Nxe5 {[%clk 0:01:49]}  Rxe5 {[%clk 0:02:27]} 18. Rxe5 {[%clk 0:01:27]}  Qxe5 {[%clk 0:02:27]} 19. c3 {[%clk 0:01:22]}  Bc6 {[%clk 0:02:25]} 20. Ne3 {[%clk 0:01:21]}  h6 {[%clk 0:02:14]} 21. Qd3 {[%clk 0:01:20]}  Re8 {[%clk 0:02:10]} 22. Rd1 {[%clk 0:01:18]}  Qg5 {[%clk 0:02:06]} 23. g3 {[%clk 0:01:00]}  Qh5 {[%clk 0:02:01]} 24. Kh2 {[%clk 0:00:34]}  Qf3 {[%clk 0:02:00]} 25. Qd2 {[%clk 0:00:30]}  Kh7 {[%clk 0:01:37]} 26. Rg1 {[%clk 0:00:26]}  Re7 {[%clk 0:01:25]} 27. Qd3+ {[%clk 0:00:20]}  Be4 {[%clk 0:01:21]} 28. Qd2 {[%clk 0:00:20]}  Re6 {[%clk 0:01:18]} 29. Ng2 {[%clk 0:00:15]}  Rf6 {[%clk 0:01:12]} 30. Qe1 {[%clk 0:00:09]}  Bc6 {[%clk 0:01:07]} 31. Nf4 {[%clk 0:00:09]}  g5 {[%clk 0:01:02]} 32. Qe7 {[%clk 0:00:04]}  gxf4 {[%clk 0:00:54]} 0-1


[Site "https://www.chess.com"]